Workbook

Sheet Sheet1
A1: 玻瓶、原料、包装物运输报价表
A2: 运输线路 | D2: 卸货地址 | E2: 货物名称 | F2: 参考里程（km） | G2: 二、三季度参考运量（吨） | H2: 单位 | I2: 含税单价 | J2: 含税总价（元） | K2: 备注
A3: A | B3: 厂区转运 | C3: 天马—沱牌总厂 | D3: 沱牌舍得洗瓶工段 | E3: 玻瓶、包装物、玻渣 | F3: 5km以内 | G3: 300 | H3: 元/吨 | J3: =I3*G3 -> 0.00
C4: 天马公司内部转运 | D4: 公司厂区内部 | E4: 玻瓶、包装物 | F4: 5km以内 | G4: 30000 | H4: 元/吨 | J4: =I4*G4 -> 0.00
A5: B | B5: 遂宁片区 | C5: 沱牌镇—遂宁 | D5: 四川省遂宁市创新工业园区 | E5: 玻瓶 | F5: 40 | G5: 2000 | H5: 元/吨 | J5: 0.00
C6: 遂宁—沱牌镇 | D6: 四川天马 | E6: 托盘 | G6: =G5/0.75 -> 2667 | H6: 元/个 | J6: 0.00
E7: 垫板 | G7: =G6*9 -> 24000 | H7: 元/张 | J7: 0.00
E8: 顶框 | G8: =G6 -> 2667 | H8: 元/个 | J8: 0.00
C9: 遂宁—沱牌镇 | D9: 天马公司 | E9: 原料 | F9: 35 | G9: 5000 | H9: 元/吨 | J9: 0.00
A10: C | B10: 南充、阆中片区 | C10: 沱牌镇—南充 | D10: 南充市嘉陵区工业园区燕京大道中段9号 | E10: 玻瓶 | F10: 85 | G10: 8000 | H10: 元/吨 | J10: 0.00
C11: 南充—沱牌镇 | D11: 四川天马 | E11: 托盘 | G11: =G10/0.75 -> 10667 | H11: 元/个 | J11: 0.00
E12: 垫板 | G12: =G11*8 -> 85333 | H12: 元/张 | J12: 0.00
E13: 顶框 | G13: =G11 -> 10667 | H13: 元/个 | J13: 0.00
C14: 沱牌镇—阆中 | D14: 阆中七里新区汉王祠路工业集中区/阆中七里开发区张公桥 | E14: 玻瓶 | F14: 165 | G14: 400 | H14: 元/吨 | J14: 0.00
C15: 阆中—沱牌镇 | D15: 四川天马 | E15: 托盘 | G15: =G14/0.75 -> 533 | H15: 元/个 | J15: 0.00
E16: 垫板 | G16: =G15*7 -> 3733 | H16: 元/张 | J16: 0.00
E17: 顶框 | G17: =G15 -> 533 | H17: 元/个 | J17: 0.00
C18: 沱牌镇—西充多扶镇 | D18: 南充市西充县多扶镇经济技术开发区 | E18: 玻瓶 | F18: 110 | G18: 40 | H18: 元/吨 | J18: 0.00 | K18: 13米车型
C19: 沱牌镇—西充 | D19: 西充县晋城镇晋城大道317号 | E19: 玻瓶 | F19: 95 | G19: 40 | H19: 元/吨 | J19: 0.00 | K19: 13米车型
A20: D | B20: 资阳片区 | C20: 沱牌镇—资阳 | D20: 资阳市雁江区百威英博大道 | E20: 玻瓶 | F20: 145 | G20: 18000 | H20: 元/吨 | J20: 0.00
C21: 资阳—沱牌镇 | D21: 四川天马 | E21: 托盘 | G21: =G20/0.75 -> 24000 | H21: 元/个 | J21: 0.00
E22: 垫板 | G22: =G21*8.5 -> 204000 | H22: 元/张 | J22: 0.00
E23: 顶框 | G23: =G21 -> 24000 | H23: 元/个 | J23: 0.00
A24: E | B24: 新都片区 | C24: 沱牌镇—新都 | D24: 新都工业东区星光路108号 | E24: 玻瓶 | F24: 160 | G24: 11100 | H24: 元/吨 | J24: 0.00
C25: 新都—沱牌镇 | D25: 新都工业东区星光路108号 | E25: 托盘 | G25: =G24/0.9 -> 12333 | H25: 元/个 | J25: 0.00
E26: 垫板 | G26: =G25*8 -> 98667 | H26: 元/张 | J26: 0.00
E27: 顶框 | G27: =G25 -> 12333 | H27: 元/个 | J27: 0.00
A28: F | B28: 成都片区 | C28: 沱牌镇—眉山 | D28: 眉山市东坡区秦家镇火星村4组 | E28: 玻瓶 | F28: 245 | G28: 400 | H28: 元/吨 | J28: 0.00
C29: 眉山—沱牌镇 | D29: 四川天马 | E29: 托盘 | G29: =G28/0.75 -> 533 | H29: 元/个 | J29: 0.00
E30: 垫板 | G30: =G29*8 -> 4267 | H30: 元/张 | J30: 0.00
E31: 顶框 | G31: =G29 -> 533 | H31: 元/个 | J31: 0.00
C32: 乐山—沱牌镇 | D32: 天马公司 | E32: 原料（纯碱/吨袋） | F32: 280 | G32: 5000 | H32: 元/吨 | J32: 0.00
C33: 沱牌镇—广汉 | D33: 广汉南兴镇/广汉向阳镇 | E33: 玻瓶 | F33: 160 | G33: 60 | H33: 元/吨 | J33: 0.00
C34: 广汉—沱牌镇 | D34: 四川天马 | E34: 托盘 | G34: =G33/0.75 -> 80 | H34: 元/个 | J34: 0.00
E35: 垫板 | G35: =G34*8 -> 640 | H35: 元/张 | J35: 0.00
E36: 顶框 | G36: =G34 -> 80 | H36: 元/个 | J36: 0.00
C37: 沱牌镇—什邡 | D37: 四川省什邡市蓝剑大道/什邡市皂角城东村10组 | E37: 玻瓶 | F37: 190 | G37: 5000 | H37: 元/吨 | J37: 0.00
C38: 沱牌镇—什邡 | D38: 什邡市皂角城东村10组 | E38: 玻瓶 | G38: 60 | H38: 元/吨 | J38: 0.00 | K38: 13米车型
C39: 什邡—沱牌镇 | D39: 四川天马 | E39: 托盘 | G39: =G38/0.9 -> 67 | H39: 元/个 | J39: 0.00
E40: 垫板 | G40: =G39*8 -> 533 | H40: 元/张 | J40: 0.00
E41: 顶框 | G41: =G39 -> 67 | H41: 元/个 | J41: 0.00
C42: 沱牌镇—大邑 | D42: 四川省成都市大邑县晋源工业区兴业四路18号 | E42: 玻瓶 | F42: 236 | G42: 3000 | H42: 元/吨 | J42: 0.00
C43: 大邑—沱牌镇 | D43: 四川天马 | E43: 托盘 | G43: =G42/0.75 -> 4000 | H43: 元/个 | J43: 0.00
E44: 垫板 | G44: =G43*8 -> 32000 | H44: 元/张 | J44: 0.00
E45: 顶框 | G45: =G43 -> 4000 | H45: 元/个 | J45: 0.00
C46: 沱牌镇—郫县 | D46: 成都郫县工业南区清马路1198号 | E46: 玻瓶 | F46: 195 | G46: 400 | H46: 元/吨 | J46: 0.00
C47: 郫 县—沱牌镇 | D47: 四川天马 | E47: 包装物 | G47: =G46/0.75/500 -> 1 | H47: 元/车 | J47: 0.00
A48: G | B48: 重庆片区 | C48: 沱牌镇—大竹林 | D48: 重庆市北部新区大竹林镇 | E48: 玻瓶 | F48: 180 | G48: 8800 | H48: 元/吨 | J48: 0.00
C49: 大竹林—沱牌镇 | D49: 四川天马 | E49: 包装物 | G49: =G48/0.785/500 -> 22 | H49: 元/车 | J49: 0.00
C50: 沱牌镇—重庆马王乡 | D50: 重庆市九龙坡区马王乡龙泉村1号/重庆市大渡口区柏树堡 | E50: 玻瓶 | F50: 190 | G50: 4000 | H50: 元/吨 | J50: 0.00
C51: 重庆马王乡—沱牌镇 | D51: 四川天马 | E51: 包装物 | G51: =G50/0.785/500 -> 10 | H51: 元/车 | J51: 0.00
C52: 沱牌镇—合川 | D52: 重庆合川 太和镇接龙街１５０号 | E52: 玻瓶 | F52: 153 | G52: 800 | H52: 元/吨 | J52: 0.00
C53: 合川—沱牌镇 | D53: 四川天马 | E53: 包装物 | G53: =G52/0.74/500 -> 2 | H53: 元/车 | J53: 0.00
C54: 沱牌镇—宜宾 | D54: 宜宾市宜宾县高场镇工业园区高捷园嘉士伯路1号 | E54: 玻瓶 | F54: 280 | G54: 800 | H54: 元/吨 | J54: 0.00
C55: 宜宾—沱牌镇 | D55: 四川天马 | E55: 包装物 | G55: =G54/0.74/500 -> 2 | H55: 元/车 | J55: 0.00
C56: 沱牌镇—江津 | D56: 重庆市江津区白沙工业园区兴盛路 | E56: 玻瓶 | F56: 240 | G56: 300 | H56: 元/吨 | J56: 0.00
C57: 江津—沱牌镇 | D57: 四川天马 | E57: 包装物 | G57: =G56/0.7/500 -> 1 | H57: 元/车 | J57: 0.00
A58: H | B58: 云南片区 | C58: 沱牌镇—云南晋宁 | D58: 昆明市晋宁县晋宁工业园区宝峰基地百威路1号 | E58: 玻瓶 | F58: 920 | G58: 8000 | H58: 元/吨 | J58: 0.00
C59: 云南晋宁—沱牌镇 | D59: 四川天马 | E59: 包装物 | G59: =G58/0.75/500 -> 21 | H59: 元/车 | J59: 0.00
C60: 沱牌镇—云南崇明 | D60: 昆明市嵩明县杨林经济技术开发区天创路18号 | E60: 玻瓶 | F60: 820 | G60: 500 | H60: 元/吨 | J60: 0.00
C61: 云南崇明—沱牌镇 | D61: 四川天马 | E61: 包装物 | G61: =G60/0.75/500 -> 1 | H61: 元/车 | J61: 0.00
C62: 沱牌镇—云南弥勒 | D62: 云南弥勒县东风农场云南红酒庄/云南省弥勒市东风农场 | E62: 玻瓶 | F62: 980 | G62: 900 | H62: 元/吨 | J62: 0.00
A63: I | B63: 广州、武汉片区 | C63: 沱牌镇—广州白云区 | D63: 广州市白云区石井镇唐阁一社工业园 | E63: 玻瓶 | F63: 1500 | G63: 3000 | H63: 元/吨 | J63: 0.00
C64: 广州白云区—沱牌镇 | D64: 四川天马 | E64: 包装物 | G64: =G63/0.87/500 -> 7 | H64: 元/车 | J64: 0.00
C65: 沱牌镇—广州佛山 | D65: 广东省佛山市三水区百威大道1号 | E65: 玻瓶 | F65: 1450 | G65: 2000 | H65: 元/吨 | J65: 0.00
C66: 广州佛山—沱牌镇 | D66: 四川天马 | E66: 包装物 | G66: =G65/0.8/500 -> 5 | H66: 元/车 | J66: 0.00
C67: 沱牌镇—武汉 | D67: 武汉市汉阳区琴断口上首 | E67: 玻瓶 | F67: 1000 | G67: 1000 | H67: 元/吨 | J67: 0.00
C68: 武汉—沱牌镇 | D68: 四川天马 | E68: 包装物 | G68: =G67/0.75/500 -> 3 | H68: 元/车 | J68: =I68*G68 -> 0.00
A69: J | B69: 乌鲁木齐、银川片区 | C69: 沱牌镇—乌鲁木齐 | D69: 乌鲁木齐市喀什西路591号 | E69: 玻瓶 | F69: 2890 | G69: 2000 | H69: 元/吨 | J69: 0.00
C70: 乌鲁木齐—沱牌镇 | D70: 四川天马 | E70: 包装物 | G70: =G69/0.785/500 -> 5 | H70: 元/车 | J70: 0.00
C71: 沱牌镇—银川 | D71: 宁夏银川市德胜工业园区永胜西路 8 号 | E71: 玻瓶 | F71: 1210 | G71: 500 | H71: 元/吨 | J71: 0.00
C72: 银川—沱牌镇 | D72: 四川天马 | E72: 包装物 | G72: 2.0 | H72: 元/车 | J72: 0.00
A73: 备注：1、玻瓶包装方式均为长方形托盘(1200mm*1000mm)包装。
A74: 2、报价表所涉及运价均包含货物保险费。
A75: 3、运输吨位指我司销售起运通知单记载的吨位，不包含包装物重量。
A76: 4、所有报价均含增值税10%。

Sheet Sheet2

Sheet Sheet3
